Cogmind - Beta 13 @@@ ROGUE MODE // 2024.04.03 @ 09:12:27 Player: ossi Result: Destroyed by as-10355 with Assembled Blade Performance ------------- Evolutions (0) 0 Regions Visited (3) 600 Robots Destroyed (21) 105 Value Destroyed (468) 468 Prototype IDs (0) 0 Alien Tech Used (0) 0 Bonus (-32) -32 TOTAL SCORE: 1141 Bonus ------- Friendly Fire -32 Cogmind --------- Core Integrity 0/250 Matter 276/300 Energy 120/125 System Corruption 0% Temperature Warm (130) Movement Treading (160) Location -10/Exiles Parts ------- > --- POWER (1) -------- Light Ion Engine > --- PROPULSION (2) --- Light Treads Light Treads > --- UTILITY (2) ------ Large Storage Unit Light Armor Plating > --- WEAPON (2) ------- Beam Rifle Beam Cannon > --- INVENTORY (15) --- Light Ion Engine Light Nuclear Core Light Treads Light Treads Signal Interpreter Improved Terrain Scanner Seismic Detector Weapon Shielding EM Pulse Gun Medium Laser Light Assault Rifle Light Cannon Datajack Mining Laser Peak State ------------ > --- POWER ------------ Ion Engine > --- PROPULSION ------- Wheel Wheel > --- UTILITY ---------- Large Storage Unit Improved Terrain Scanner > --- WEAPON ----------- Medium Laser Light Cannon > --- INVENTORY -------- Light Ion Engine Light Ion Engine Light Nuclear Core Wheel Heat Sink Weapon Shielding Light Armor Plating Beam Cannon Mining Laser [Rating: 10] Favorites ----------- Power Ion Engine Engine Ion Engine Power Core Light Nuclear Core Propulsion Wheel Treads Light Treads Wheel Wheel Utility Large Storage Unit Device Seismic Detector Storage Large Storage Unit Protection Light Armor Plating Weapon Medium Laser Energy Gun Medium Laser Energy Cannon Beam Cannon Ballistic Gun Light Assault Rifle Ballistic Cannon Light Cannon Launcher Grenade Launcher Special Weapon Mining Laser Build | -11 -10 -10 -10 ------- Run | Yrd Mat Min Exi Slots Evolved . | . . . . Power . | . . . . Propulsion . | . . . . Utility . | . . . . Weapon . | . . . . Parts Attached 39 | 8 17 14 . Power 7 | 2 4 1 . Engine 6 | 2 3 1 . Core 1 | . 1 . . Reactor . | . . . . Propulsion 6 | 2 1 3 . Treads 2 | . . 2 . Leg . | . . . . Wheel 4 | 2 1 1 . Hover . | . . . . Flight . | . . . . Utility 14 | 1 7 6 . Device 9 | 1 4 4 . Storage 1 | . 1 . . Processor . | . . . . Hackware . | . . . . Protection 4 | . 2 2 . Artifact . | . . . . Weapon 12 | 3 5 4 . Energy Gun 5 | 2 2 1 . Energy Cannon 1 | . . 1 . Ballistic Gun 2 | . 1 1 . Ballistic Cannon 1 | . 1 . . Launcher 1 | . . 1 . Special Weapon 2 | 1 1 . . Impact Weapon . | . . . . Slashing Weapon . | . . . . Piercing Weapon . | . . . . Special Melee Weapon . | . . . . Unidentified Prototypes . | . . . . Parts Lost 7 | . 2 5 . Power 2 | . 1 1 . Propulsion 3 | . 1 2 . Utility 1 | . . 1 . Weapon 1 | . . 1 . Highest Loss Streak 4 | . 1 4 . To Critical Strikes . | . . . . Average Slot Usage (%) 97 | . 98 96 100 Engine 12 | . 12 12 14 Treads 7 | . . 11 28 Wheel 20 | . 27 15 . Device 9 | . 13 6 . Storage 11 | . 9 14 14 Protection 6 | . 4 6 14 Energy Gun 11 | . 14 7 14 Energy Cannon 4 | . . 7 14 Ballistic Gun 2 | . . 6 . Ballistic Cannon 7 | . 11 2 . Launcher 1 | . . 3 . Naked Turns . | . . . . Heaviest Build 33 | 10 33 32 32 Greatest Support 40 | 20 20 40 40 Greatest Overweight (x) 3 | . 1 3 . Average Overweight (x) . | . . . . Largest Inventory Capacity 15 | 5 15 15 15 Average Capacity 12 | 5 11 15 15 Most Carried 15 | 5 15 15 14 Average Carried 10 | 3 9 14 14 Final Capacity 15 | 5 15 15 15 Final Carried 15 | 5 15 14 14 Class Distribution -------------------- 76% | Mutant 23% | Scavenger-Mutant Dominant Class ---------------- Mutant | -10/Materials Mutant | -10/Mines Scavenger-Mutant | -10/Exiles Resources | -11 -10 -10 -10 ----------- Run | Yrd Mat Min Exi Matter Collected 696 | 270 239 187 . Remotely 89 | . 89 . . Salvage Created 586 | 124 170 292 . Parts 38 | 10 14 14 . Haulers Intercepted 1 | . 1 . . Recyclers Shooed . | . . . . Parts Field Recycled . | . . . . Retrieved Matter . | . . . . Parts Self-Destructed . | . . . . Prevented . | . . . . Kills | -11 -10 -10 -10 ------- Run | Yrd Mat Min Exi Combat Hostiles Destroyed 12 | 1 5 6 . Guns 3 | 1 . 2 . Cannons 7 | . 5 2 . AOE 2 | . . 2 . Classes Destroyed 7 | 3 3 1 . Worker 1 | 1 . . . Tunneler 6 | 4 2 . . Hauler 1 | . 1 . . Watcher 1 | . 1 . . Swarmer 3 | . 3 . . Grunt 7 | 1 2 4 . Sentry 2 | . . 2 . Best Kill Streak 4 | 4 2 2 . Combat Bots Only 2 | 1 2 2 . Max Kills in Single Turn 1 | 1 1 1 . Gunslinging . | . . . . Exploded 1 | . . 1 . Melee . | . . . . Uniques/NPCs Destroyed . | . . . . Combat | -11 -10 -10 -10 -------- Run | Yrd Mat Min Exi Hostile Shots Fired 106 | 3 36 50 17 Missed 33 | . 15 13 5 Damage Taken 1000 | 33 271 525 171 Core 262 | 23 79 118 42 Absorbed by Shields . | . . . . Regen/Repaired (Parts) 45 | . 45 . . Core Remaining (%) 90 | 90 . . . Volleys Fired 78 | 19 32 25 2 Largest 2 | 2 2 2 2 Hottest 150 | 150 150 80 116 Shots Fired 155 | 38 63 50 4 Gun 100 | 35 36 27 2 Cannon 46 | . 25 19 2 Launcher 4 | . . 4 . Special 5 | 3 2 . . Kinetic 50 | . 25 25 . Thermal 101 | 38 38 21 4 Explosive 4 | . . 4 . Electromagnetic . | . . . . Robot Hit Streak 9 | 9 6 8 3 Robot Miss Streak 4 | 3 4 3 1 Penetration Max . | . . . . Secondary Targets . | . . . . Shots Hit Robots 87 | 21 35 28 3 Core Hits 35 | 7 11 15 2 Critical Kills . | . . . . Critical Parts Destroyed 1 | . . 1 . Critical Strikes 7 | 1 5 1 . Burn 4 | 1 3 . . Destroy 1 | . . 1 . Blast 2 | . 2 . . Melee Attacks . | . . . . Impact . | . . . . Slashing . | . . . . Piercing . | . . . . Sneak Attacks . | . . . . Combat Hostiles . | . . . . Follow-up Attacks . | . . . . Damage Inflicted 1372 | 277 542 503 50 Guns 691 | 277 263 136 15 Cannons 489 | . 279 175 35 Explosions 192 | . . 192 . Melee . | . . . . Ramming . | . . . . Kinetic 402 | . 279 123 . Thermal 778 | 277 263 188 50 Explosive 192 | . . 192 . Electromagnetic . | . . . . Impact . | . . . . Slashing . | . . . . Piercing . | . . . . Highest Corruption . | . . . . Average Corruption . | . . . . Corruption Purged . | . . . . Corruption Blocked . | . . . . Overload Shots . | . . . . Overflow Damage . | . . . . Projectiles . | . . . . Explosions . | . . . . Melee . | . . . . Knockbacks 3 | . 3 . . Impact . | . . . . Kinetic 3 | . 3 . . Secondary . | . . . . Self-Inflicted Damage . | . . . . Shots . | . . . . Rammed . | . . . . Targets Rammed . | . . . . Kicked . | . . . . Crushed . | . . . . Highest Temperature 210 | 156 143 210 130 Average Temperature 68 | 58 47 94 75 Received Heat Transfer 388 | 18 138 192 40 Siege Activations . | . . . . Robots Corrupted . | . . . . Combat Hostiles . | . . . . Parts Fried . | . . . . Impact Corruptions . | . . . . Robots Melted . | . . . . Combat Hostiles . | . . . . Parts Melted 5 | 1 1 3 . Heat Transferred 2405 | 888 999 407 111 Parts Sabotaged . | . . . . Parts Stolen . | . . . . Parts Stripped . | . . . . Power Chain Reactions . | . . . . Alert | -11 -10 -10 -10 ------- Run | Yrd Mat Min Exi Peak Influence 198 | 45 152 198 . Initial 58 | . 29 58 . Average 74 | 26 81 84 . Maximum Alert Level . | . . . . Low Security (%) 100 | 100 100 100 . Level 1 . | . . . . Level 2 . | . . . . Level 3 . | . . . . Level 4 . | . . . . Level 5 . | . . . . High Security . | . . . . Max Security . | . . . . Squads Dispatched . | . . . . Investigation . | . . . . Extermination . | . . . . Reinforcement . | . . . . Assault . | . . . . Garrison . | . . . . Intercept . | . . . . Searches Triggered . | . . . . Construction Impeded . | . . . . Haulers Reinforced . | . . . . Active Scanning Responses . | . . . . Cargo Convoy Interrupts . | . . . . Stealth | -11 -10 -10 -10 --------- Run | Yrd Mat Min Exi Distress Signals 2 | . 2 . . Communications Jammed . | . . . . Distress Signals . | . . . . Times Spotted 32 | 1 16 6 9 Peak Tracking Total 10 | 1 4 2 10 Tactical Retreats 2 | . 2 . . Traps | -11 -10 -10 -10 ------- Run | Yrd Mat Min Exi Traps Triggered . | . . . . Indirectly . | . . . . Trap Hack Attempts . | . . . . Triggered . | . . . . Disarmed . | . . . . Reprogrammed . | . . . . Reused . | . . . . Traps Extracted . | . . . . Installed . | . . . . Triggered . | . . . . Machines | -11 -10 -10 -10 ---------- Run | Yrd Mat Min Exi Machines Disabled 2 | . . 1 1 Max in Single Turn 1 | . . 1 1 Machines Repaired . | . . . . Machines Dismantled . | . . . . Machines Sabotaged . | . . . . Overloaded Fab Kills . | . . . . Hacking | -11 -10 -10 -10 --------- Run | Yrd Mat Min Exi Machines Accessed 8 | . 8 . . Terminals 5 | . 5 . . Fabricators . | . . . . Repair Stations 1 | . 1 . . Recycling Units 2 | . 2 . . Scanalyzers . | . . . . Garrison Access . | . . . . Total Hacks 19 | . 19 . . Successful 9 | . 9 . . Failed 10 | . 10 . . Catastrophic 2 | . 2 . . Database Lockouts . | . . . . Manual . | . . . . Terminals 13 | . 13 . . Fabricators . | . . . . Repair Stations 2 | . 2 . . Recycling Units 4 | . 4 . . Scanalyzers . | . . . . Garrison Access . | . . . . Terminal Hacks 4 | . 4 . . Record 2 | . 2 . . Alert Level 1 | . 1 . . Locate Traps 1 | . 1 . . Fabricator Hacks . | . . . . Repair Station Hacks 2 | . 2 . . Scan Component 1 | . 1 . . Repair 1 | . 1 . . Recycling Unit Hacks 3 | . 3 . . Report Inventory 2 | . 2 . . Retrieve Components 1 | . 1 . . Scanalyzer . | . . . . Garrison Access Hacks . | . . . . Unauthorized Hacks . | . . . . Terminals . | . . . . Fabricators . | . . . . Repair Stations . | . . . . Recycling Units . | . . . . Scanalyzers . | . . . . Garrison Access . | . . . . Data Cores Recovered . | . . . . Used . | . . . . Hacking Detections 6 | . 6 . . Full Trace Events . | . . . . Feedback Events . | . . . . Feedback Blocked . | . . . . Robot Schematics Acquired . | . . . . Robots Built . | . . . . Authchips . | . . . . Time . | . . . . Total Robot Build Rating . | . . . . Part Schematics Acquired . | . . . . Parts Built . | . . . . Authchips . | . . . . Time . | . . . . Total Part Build Rating . | . . . . Parts Repaired 1 | . 1 . . Time 26 | . 26 . . Parts Recycled . | . . . . Recycled Matter . | . . . . Retrieved Matter . | . . . . Retrieved Components 2 | . 2 . . Parts Scanalyzed . | . . . . Part Schematics Acquired . | . . . . Parts Damaged . | . . . . Bothacking | -11 -10 -10 -10 ------------ Run | Yrd Mat Min Exi Used RIF Installer . | . . . . Robots Hacked . | . . . . Non-combat . | . . . . Combat . | . . . . Robot Hacks Applied . | . . . . Relay Couplers Released . | . . . . Fabnet Peak Effective % . | . . . . Robots Rewired . | . . . . Allies Hacked . | . . . . Hacks Repelled . | . . . . Allies | -11 -10 -10 -10 -------- Run | Yrd Mat Min Exi Total Allies . | . . . . Largest Group . | . . . . Highest-Rated Group . | . . . . Highest-Rated Ally . | . . . . Total Orders . | . . . . Ally Attacks . | . . . . Total Damage . | . . . . Kills . | . . . . Allies Corrupted . | . . . . Allies Melted . | . . . . Intel | -11 -10 -10 -10 ------- Run | Yrd Mat Min Exi Robot Analysis Total . | . . . . Derelict Logs Recovered 1 | . . 1 . Drone Launches . | . . . . Drone Recoveries . | . . . . Exploration | -11 -10 -10 -10 ------------- Run | Yrd Mat Min Exi Turns Passed 1655 | 217 724 591 123 Spaces Moved 1256 | 171 597 415 73 Core 18 | 18 . . . Treads 214 | . . 141 73 Legs . | . . . . Wheels 1024 | 153 597 274 . Hover . | . . . . Flight . | . . . . Fastest Speed 50 | 50 80 95 160 Average Speed 101 | 76 90 117 160 Slowest Speed 160 | 80 95 160 160 Overloaded Moves . | . . . . Propulsion Burnouts . | . . . . Robots Hopped . | . . . . Cave-ins Triggered . | . . . . Exploration Rate (%) 40 | 7 83 48 22 Regions Visited 3 Branch Regions 2 Pre-discovered Areas . | . . . . Known Exits Taken . | . . . . Unknown Exits Taken 3 | 1 1 1 . Scrap Searched . | . . . . Spaces Dug 2 | 1 1 . . Terrain Destroyed 23 | 1 1 21 . Melee . | . . . . Projectile 2 | 1 1 . . AOE 21 | . . 21 . Terrain Rammed . | . . . . Walls Destroyed . | . . . . Machines Disabled . | . . . . Actions | -11 -10 -10 -10 --------- Run | Yrd Mat Min Exi Total 1470 | 212 712 470 76 Wait 47 | . 39 8 . Move 1253 | 170 596 414 73 Hop . | . . . . Pick Up 40 | 13 21 6 . Fast Attach . | . . . . Attach 15 | 6 4 5 . Detach . | . . . . Swap 24 | 2 13 9 . Drop 11 | 2 7 2 . Fire 78 | 19 32 25 2 Melee . | . . . . Ram . | . . . . Kick . | . . . . Crush . | . . . . Escape Stasis . | . . . . Rewire 2 | . . 1 1 Trap . | . . . . Miscellaneous . | . . . . Route ------- -11/Scrapyard -10/Materials (discovered 3 exits: [*Mat x2] / [*Min]) -10/Mines -10/Exiles (discovered 1 exit: [*Min]) History --------- Turn | Location | Event 2 | -11/Scrapyard | Met Revision 17 63 | -11/Scrapyard | Discovered new exit (range 8) 218 | -11/Scrapyard | Entered Materials 377 | -10/Materials | Discovered new exit (range 13) 392 | -10/Materials | Build established: Mutant 702 | -10/Materials | Discovered new exit (range 16) 792 | -10/Materials | Discovered new exit (range 13) 898 | -10/Materials | Repaired Lgt. Armor Plating 942 | -10/Materials | Entered Mines 949 | -10/Mines | Met a Derelict bent on vengeance 1124 | -10/Mines | Deemed a non-threat by the Exiles lab entrance 1124 | -10/Mines | Discovered new exit (range 5) 1204 | -10/Mines | Core integrity fell below 50% 1265 | -10/Mines | Core integrity fell below 20% 1292 | -10/Mines | Lost 4 parts (1p2n1u) 1533 | -10/Mines | Entered Exiles 1561 | -10/Exiles | Discovered new exit (range 15) 1573 | -10/Exiles | Build established: Scavenger-Mutant 1578 | -10/Exiles | Met 8R-AWN 1601 | -10/Exiles | Met EX-HEX 1651 | -10/Exiles | Attacked by the Exiles 1656 | -10/Exiles | Destroyed by as-10355 with Assembled Blade Last Messages --------------- pattern or logic. It's almost like the early stages of some sort of... evolution. I'd love to just go ask the Imprinter what all this is about, she must know something, but I doubt that would end well. The Zionites will tell you those Marauders at the gates are defenses set up by Warlord... Nope, the Imprinter put them there mostly to keep us out! Anyway, I've got to get back to poking and prodding these nasty little guys. Go see BIN. I can't imagine you'll want to stay in our boring little cave for long, and we could use some help with the project in the back. Attempting to rewire as-32245. as-32245 cannot be rewired. EXILES: Hostile robot within lab perimeter. Defensive protocols time, folks! Assembled Analyzer disabled. [Achievement: First Step to Greatness] Map ----- +----------------------------------------------------+ | ?????????????????????????????????????????????????? | | ?????????????????????????????????????????????????? | | ?????????????????????????????????????????????????? | | ?????????????????????????????????????????????????? | | ?????????????????????????????????????????????????? | | ?????????????????????????????????????????????????? | | ?????????????????????????????????????????????????? | | ?????????????????????????????????????????????????? | | ?????????????????????????????????????????????????? | | ??????????????????????##?????????????????????????? | | ???????????????###"?"""""""##????????????????????? | | ??????????????? " """ """"#????????????????????? | | ?????????????? "" " #???????????????????? | | ?????????????? " """#???????????????????? | | ????????????? "a"#???????????#####???? | | ????????????? "##?????????##" #???? | | ????????????? ""###???????#" #???? | | ???????????? """#??????##" ##??? | | ???????????? "#????### ###? | | ?????????????"" ##???# ## | | ??????????????"" ##?## # | | ?????????????"""" c ### g | | ?????????????"" ## | | ????????????"""" #### | | ???????????" ""#?#"""""# | | ?????????? @ #"""##?####### | | ?????????? a ######????????? | | ?????????? z a ##?????????????? | | ??????????? " aa ##??????????????? | | ???????????"" """ ""#???????????????? | | ????????????"" " " ""#"a a a "##???????????????? | | ??????????????#""" """##"""""""##????????????????? | | ????????????????#""""??#########?????????????????? | | ?????????????????????????????????????????????????? | | ?????????????????????????????????????????????????? | | ?????????????????????????????????????????????????? | | ?????????????????????????????????????????????????? | | ?????????????????????????????????????????????????? | | ?????????????????????????????????????????????????? | | ?????????????????????????????????????????????????? | | ?????????????????????????????????????????????????? | | ?????????????????????????????????????????????????? | | ?????????????????????????????????????????????????? | | ?????????????????????????????????????????????????? | | ?????????????????????????????????????????????????? | | ?????????????????????????????????????????????????? | | ?????????????????????????????????????????????????? | | ?????????????????????????????????????????????????? | | ?????????????????????????????????????????????????? | | ?????????????????????????????????????????????????? | +----------------------------------------------------+ Best States ------------- Heat Dissipation 35 Energy Generation 14 Energy Capacity 250 Matter Stores 300 Matter Capacity 300 Sight Range 16 Terrain Scan Range 16 Terrain Scan Density 10 Armor Coverage 150 Evasion (%) 50 Recoil Reduction 2 Item Schematics ----------------- None Robot Schematics ------------------ None Fabricated ------------ Nothing Alien Tech Used ----------------- None Achievements -------------- First Step to Greatness Challenges ------------ None Game ------ Seed CompactSpectralEdition Manual? 0 Play Time 00:36:03 Cumulative 1.3 hours Start 2024.04.03 @ 08:27:56 End 2024.04.03 @ 09:12:27 Sessions 1 Manual Loads 0 Difficulty Rogue Special Mode None Game No. 2 Rogue 2 Adventurer 0 Explorer 0 Win Type - Total 0 Types 0/0/0/0/0/0/0/0/0 Lore% 1 Gallery% 2 Achievement% 5 Wizard Run 0 Options --------- Layout 1 ASCII 0 Keyboard 0 Movement Mouse Keybinds 0 Fullscreen 1 Font 24/Smallcaps Map View 50x35 Zoom Use 0% Tactical HUD 0 Map Filters NONE Filters NONE Steam 1 RUN: c38810da-82dc-41af-a9b3-ea985ba08319